[Event "40th Plunge Open-A 2020"]
[Site "Plunge"]
[Date "2020.07.14"]
[Round "2.10"]
[White "Greicius, Pijus"]
[Black "Baltrunas, Arvydas"]
[Result "1/2-1/2"]
[ECO "A41"]
[WhiteElo "1893"]
[BlackElo "1810"]
[Annotator "NA RC"]
[PlyCount "61"]
[EventDate "2020.07.13"]
[EventType "swiss"]
[EventCountry "LTU"]
[SourceTitle "playchess.com"]
[Source "ChessBase"]
[SourceQuality "1"]
[TimeControl "5400+30"]

{[%evp 8,61,44,43,39,26,31,35,30,20,36,28,27,20,36,25,25,16,22,-33,-20,-37,-36,-47,4,-25,9,-39,-33,-135,-19,-52,-35,-50,-18,-58,-52,-100,14,0,0,7,42,0,11,0,4,0,15,17,13,0,0,0,0,0]} 1. d4 {[%emt 0:00:00]} d6 {[%emt 0:00:00]} 2. Nf3 {[%emt 0:00:00]} Bg4 {[%emt 0:00:00]} 3. g3 {[%emt 0:01:20]} Bxf3 {[%emt 0:00:10]} 4. exf3 {[%emt 0:00:02]} g6 {[%emt 0:02:06]} 5. Bg2 {[%emt 0:00:53]} Bg7 {[%emt 0:00:17]} 6. f4 {[%emt 0:00:24] A41: 1 d4 d6: Tartakower System and Modern Defence.} c6 {[%emt 0:00:17]} 7. O-O {[%emt 0:02:52]} e6 {[%emt 0:02:08] [#]} 8. b3 $146 {[%emt 0:03:03]} ({Predecessor:} 8. c3 Ne7 9. Re1 O-O 10. Nd2 Nd7 11. Nf3 Qc7 12. Be3 c5 13. dxc5 Nxc5 14. Bd4 Bxd4 15. Nxd4 {0-1 (26) Sokolov,A (2532)-Svidler,P (2737) St Petersburg 2018}) 8... Ne7 {[%emt 0:00:10]} 9. Bb2 {[%emt 0:01:12]} O-O {[%emt 0:00:41]} 10. Nd2 {[%emt 0:00:41]} d5 {[%emt 0:03:54]} 11. c3 {[%emt 0:04:55]} Nd7 {[%emt 0:02:30]} 12. Qc2 {[%emt 0:04:06]} Rc8 {[%emt 0:00:14]} 13. Ba3 {[%emt 0:00:25]} c5 {[%emt 0:00:49]} 14. dxc5 {[%emt 0:00:54]} Nxc5 {[%emt 0:00:56]} 15. Rac1 {[%emt 0:00:32]} Re8 {[%emt 0:02:24]} 16. Rfd1 {[%emt 0:01:34]} Qa5 {[%emt 0:00:30]} 17. Bb4 {[%emt 0:00:47]} Qb6 {[%emt 0:00:26]} 18. a4 {[%emt 0:01:44] [#]} (18. Qb1 $11) 18... a5 {[%emt 0:00:32]} ({Better is} 18... Na6 $1 $17 {[%cal Ra6b4]} 19. Bxe7 Rxc3) 19. Ba3 {[%emt 0:00:17]} Nf5 {[%emt 0:04:22]} 20. Qb1 {[%emt 0:04:50]} Rc7 {[%emt 0:08:00]} 21. Bf1 {[%emt 0:19:49]} Rec8 {[%emt 0:06:45]} 22. c4 {[%emt 0:01:36] [#]} (22. Bg2 $15) 22... d4 {[%emt 0:09:05]} (22... Bd4 $1 $17 {[%cal Rd4f2]} 23. cxd5 Bxf2+ 24. Kh1 exd5) 23. Bxc5 {[%emt 0:03:42]} Qxc5 {[%emt 0:00:03]} 24. Ne4 {[%emt 0:00:15]} Qa3 {[%emt 0:01:02]} 25. Bg2 {[%emt 0:02:24]} b6 {[%emt 0:01:37]} 26. Qd3 {[%emt 0:02:36]} Qb4 {[%emt 0:18:29]} 27. h4 {[%emt 0:08:27]} h5 {[%emt 0:06:03]} 28. Bh3 {[%emt 0:07:08]} Nd6 {[%emt 0:05:27]} 29. Nxd6 {[%emt 0:01:58]} Qxd6 {[%emt 0:00:03]} 30. Re1 {[%emt 0:00:39]} Rd8 {[%emt 0:00:34]} 31. Bg2 $11 {[%emt 0:07:23]} 1/2-1/2

[Event "40th Plunge Open-A 2020"]
[Site "Plunge"]
[Date "2020.07.15"]
[Round "4.4"]
[White "Eigminas, Kipras"]
[Black "Juksta, Karolis"]
[Result "0-1"]
[ECO "C11"]
[WhiteElo "2116"]
[BlackElo "2366"]
[Annotator "ChessBase"]
[PlyCount "152"]
[EventDate "2020.07.13"]
[EventType "swiss"]
[EventCountry "LTU"]
[SourceTitle "playchess.com"]
[Source "ChessBase"]
[SourceQuality "1"]
[TimeControl "5400+30"]

1. e4 {[%emt 0:00:00]} e6 {[%emt 0:00:00]} 2. d4 {[%emt 0:00:05]} d5 {[%emt 0:00:00]} 3. Nc3 {[%emt 0:00:03]} Nf6 {[%emt 0:00:01]} 4. e5 {[%emt 0:00:06]} Nfd7 {[%emt 0:00:05]} 5. f4 {[%emt 0:00:04]} c5 {[%emt 0:00:05]} 6. Nf3 {[%emt 0:00:03]} Nc6 {[%emt 0:00:27]} 7. Be3 {[%emt 0:00:06]} h6 {[%emt 0:00:36]} 8. Qd2 {[%emt 0:16:06]} g5 {[%emt 0:00:09]} 9. fxg5 {[%emt 0:00:10]} cxd4 {[%emt 0:00:27]} 10. Nxd4 {[%emt 0:00:11]} Ndxe5 {[%emt 0:00:31]} 11. Be2 {[%emt 0:06:28]} hxg5 {[%emt 0:01:20]} 12. Bxg5 {[%emt 0:07:58]} Bh6 {[%emt 0:00:22]} 13. Bxh6 {[%emt 0:04:00]} Qh4+ {[%emt 0:00:14]} 14. g3 {[%emt 0:00:01]} Qxh6 {[%emt 0:00:27]} 15. Qxh6 {[%emt 0:03:42]} Rxh6 {[%emt 0:00:07]} 16. O-O-O {[%emt 0:00:11]} Bd7 {[%emt 0:04:23]} 17. h4 {[%emt 0:02:55]} Ke7 {[%emt 0:00:39]} 18. g4 {[%emt 0:16:50]} Rah8 {[%emt 0:01:28]} 19. h5 {[%emt 0:00:09]} Rg8 {[%emt 0:01:25]} 20. Nxc6+ {[%emt 0:01:53]} bxc6 {[%emt 0:02:55]} 21. Rdg1 {[%emt 0:01:31]} f6 {[%emt 0:01:00]} 22. Na4 {[%emt 0:03:22]} Nf7 {[%emt 0:05:58]} 23. Nc5 {[%emt 0:02:17]} e5 {[%emt 0:02:04]} 24. Rg3 {[%emt 0:02:27]} Kd6 {[%emt 0:04:49]} 25. Nb7+ Kc7 {[%emt 0:01:50]} 26. Nc5 {[%emt 0:03:43]} Bc8 {[%emt 0:07:59]} 27. Ra3 {[%emt 0:01:29]} Nd6 {[%emt 0:03:16]} 28. Rh4 {[%emt 0:04:08]} Rg5 {[%emt 0:08:01]} 29. b4 {[%emt 0:02:36]} Kb8 {[%emt 0:01:15]} 30. Bd1 {[%emt 0:08:29]} Nb5 {[%emt 0:03:37]} 31. Rd3 {[%emt 0:00:53]} e4 {[%emt 0:08:13]} 32. Re3 {[%emt 0:00:21]} Nd6 {[%emt 0:05:22]} 33. Re1 {[%emt 0:00:57]} Nc4 {[%emt 0:01:09]} 34. Nb3 {[%emt 0:02:44]} Ne5 {[%emt 0:00:58]} 35. Nd4 {[%emt 0:00:02]} Kc7 {[%emt 0:04:15]} 36. Re3 {[%emt 0:03:09]} Bxg4 {[%emt 0:05:16]} 37. Bxg4 {[%emt 0:00:33]} Rxg4 {[%emt 0:00:20]} 38. Rxg4 {[%emt 0:00:02]} Nxg4 {[%emt 0:00:08]} 39. Rg3 {[%emt 0:01:51]} Ne5 {[%emt 0:00:51]} 40. Rg7+ {[%emt 0:00:13]} Nd7 {[%emt 0:03:08]} 41. b5 {[%emt 0:00:47]} c5 {[%emt 0:02:12]} 42. Ne6+ {[%emt 0:00:41]} Kd6 {[%emt 0:00:11]} 43. Nf4 {[%emt 0:00:02]} d4 {[%emt 0:00:59]} 44. a4 {[%emt 0:00:34]} c4 {[%emt 0:06:56]} 45. Ne2 {[%emt 0:01:37]} Rxh5 {[%emt 0:04:17]} 46. Nxd4 {[%emt 0:00:01]} c3 {[%emt 0:00:50]} 47. Kb1 {[%emt 0:00:01]} Rc5 {[%emt 0:01:52]} 48. Ne2 {[%emt 0:03:03]} Rc4 {[%emt 0:00:59]} 49. Ka2 {[%emt 0:01:28]} Rxa4+ {[%emt 0:02:26]} 50. Kb3 {[%emt 0:00:01]} Nc5+ {[%emt 0:00:41]} 51. Kxc3 {[%emt 0:00:01]} Kd5 {[%emt 0:02:09]} 52. Kd2 {[%emt 0:00:47]} Ra3 {[%emt 0:00:38]} 53. c3 {[%emt 0:01:22]} f5 {[%emt 0:02:17]} 54. Ke3 {[%emt 0:01:09]} Ne6 {[%emt 0:01:49]} 55. Rd7+ {[%emt 0:02:41]} Ke5 {[%emt 0:00:13]} 56. Re7 {[%emt 0:00:04]} Kf6 {[%emt 0:01:10]} 57. Rd7 {[%emt 0:00:43]} Ra5 {[%emt 0:01:25]} 58. Rb7 {[%emt 0:01:17]} Ke5 {[%emt 0:00:56]} 59. Re7 {[%emt 0:00:01]} Kd6 {[%emt 0:00:01]} 60. Rf7 {[%emt 0:00:37]} Rxb5 {[%emt 0:01:29]} 61. Rxa7 {[%emt 0:00:01]} Rd5 {[%emt 0:00:18]} 62. Nd4 {[%emt 0:01:22]} Nxd4 {[%emt 0:01:01]} 63. cxd4 {[%emt 0:00:01]} Ke6 {[%emt 0:00:29]} 64. Rh7 {[%emt 0:00:51]} Rb5 {[%emt 0:00:21]} 65. Kf4 {[%emt 0:00:25]} Rb1 {[%emt 0:00:43]} 66. Rh8 {[%emt 0:00:47]} Rf1+ {[%emt 0:00:15]} 67. Kg5 {[%emt 0:00:37]} Rg1+ {[%emt 0:00:58]} 68. Kf4 {[%emt 0:00:05]} Rf1+ {[%emt 0:00:18]} 69. Kg5 {[%emt 0:00:03]} Rg1+ {[%emt 0:00:20]} 70. Kf4 {[%emt 0:00:13]} Rg4+ {[%emt 0:00:06]} 71. Ke3 {[%emt 0:00:03]} Rg3+ {[%emt 0:00:06]} 72. Kf4 {[%emt 0:00:02]} Rf3+ {[%emt 0:00:20]} 73. Kg5 {[%emt 0:00:00]} e3 {[%emt 0:00:16]} 74. Rd8 {[%emt 0:00:29]} f4 {[%emt 0:00:44]} 75. Ra8 {[%emt 0:02:09]} Rf2 {[%emt 0:00:12]} 76. Ra5 {[%emt 0:00:20]} e2 {[%emt 0:00:27]} 0-1

[Event "40th Plunge Open-A 2020"]
[Site "Plunge"]
[Date "2020.07.18"]
[Round "8.8"]
[White "Simkunaite, Gabija"]
[Black "Greicius, Pijus"]
[Result "1/2-1/2"]
[ECO "C44"]
[WhiteElo "1871"]
[BlackElo "1893"]
[Annotator "NA RC"]
[PlyCount "34"]
[EventDate "2020.07.13"]
[EventType "swiss"]
[EventCountry "LTU"]
[SourceTitle "playchess.com"]
[Source "ChessBase"]
[SourceQuality "1"]
[TimeControl "5400+30"]

{[%evp 8,34,-12,-6,0,-1,6,-7,-4,-4,7,-8,24,32767,32767,32767,32767,10,8,0,0,0,0,0,0,-4,0,-5,-1]} 1. e4 {[%emt 0:00:00]} e5 {[%emt 0:00:00]} 2. Nf3 {[%emt 0:00:00]} Nc6 {[%emt 0:00:00]} 3. d4 {[%emt 0:00:00]} exd4 {[%emt 0:00:00]} 4. Nxd4 {[%emt 0:00:00]} Nf6 {[%emt 0:00:07]} 5. Nc3 {[%emt 0:00:45]} Bb4 {[%emt 0:00:13]} 6. Nxc6 {[%emt 0:00:06]} bxc6 {[%emt 0:00:08]} 7. Bd3 {[%emt 0:00:05]} d5 {[%emt 0:00:29]} 8. exd5 {[%emt 0:00:16]} O-O {[%emt 0:00:11]} 9. O-O {[%emt 0:00:59]} Bg4 {[%emt 0:00:24]} 10. f3 {[%emt 0:04:57]} Bh5 {[%emt 0:00:26]} 11. Bg5 {[%emt 0:06:26]} Qd6 {[%emt 0:00:13]} 12. Bxf6 {[%emt 0:03:02]} Qxf6 {[%emt 0:01:31]} 13. dxc6 {[%emt 0:04:10]} Bxc3 {[%emt 0:00:20]} 14. bxc3 {[%emt 0:00:05]} Qxc3 {[%emt 0:02:00]} 15. Qe1 {[%emt 0:09:43]} Qxc6 {[%emt 0:03:29]} 16. Be4 {[%emt 0:04:12]} Qb6+ {[%emt 0:01:48]} 17. Qf2 {[%emt 0:03:58]} Rab8 $11 {[%emt 0:05:23]} 1/2-1/2

[Event "40th Plunge Open-A 2020"]
[Site "Plunge"]
[Date "2020.07.18"]
[Round "8.9"]
[White "Cibulskis, Vaclovas"]
[Black "Povilaitis, Tomas"]
[Result "0-1"]
[ECO "B30"]
[WhiteElo "1830"]
[BlackElo "1832"]
[Annotator "NA RC"]
[PlyCount "158"]
[EventDate "2020.07.13"]
[EventType "swiss"]
[EventCountry "LTU"]
[SourceTitle "playchess.com"]
[Source "ChessBase"]
[SourceQuality "1"]
[TimeControl "5400+30"]

1. e4 {[%emt 0:00:00]} c5 {[%emt 0:00:00]} 2. Nf3 {[%emt 0:00:17]} Nc6 {[%emt 0:00:00]} 3. Bb5 {[%emt 0:01:01]} e6 {[%emt 0:00:14]} 4. O-O {[%emt 0:00:59]} Nge7 {[%emt 0:00:10]} 5. d4 {[%emt 0:11:52]} cxd4 {[%emt 0:01:36]} 6. Nxd4 {[%emt 0:00:04]} Qb6 {[%emt 0:00:10]} 7. Bxc6 {[%emt 0:01:43] B30: Sicilian: 2...Nc6 3 Bb5, lines without ...g6.} Nxc6 {[%emt 0:01:43]} 8. Nb3 {[%emt 0:02:55]} Be7 {[%emt 0:01:20]} 9. Be3 {[%emt 0:04:53]} Qc7 {[%emt 0:00:36]} 10. Nc3 {[%emt 0:00:41]} O-O {[%emt 0:01:32]} 11. f4 {[%emt 0:00:59] [#]} b6 $146 {[%emt 0:02:38]} ({Predecessor:} 11... d6 12. Qf3 a6 13. a4 b6 14. Rad1 Bb7 15. g4 Nb4 16. Qf2 Bd8 17. f5 exf5 18. gxf5 f6 19. Bf4 Be7 20. Rd4 Nc6 21. Nd5 Qd8 22. Nxe7+ Nxe7 23. Rxd6 {1-0 (23) Keogh,E (2170)-Brady,C (2075) Kilkenny 1997}) 12. f5 {[%emt 0:16:23]} Bf6 {[%emt 0:05:41]} 13. Bf4 {[%emt 0:09:08]} Be5 {[%emt 0:01:19]} 14. Nb5 {[%emt 0:01:09]} Qd8 {[%emt 0:02:58]} 15. Bxe5 {[%emt 0:02:17]} Nxe5 {[%emt 0:00:08]} 16. Qd6 {[%emt 0:03:10]} Nc4 {[%emt 0:04:59]} 17. Qd4 {[%emt 0:00:23]} (17. Qg3 $5 {[%cal Rf5f6]}) 17... d5 {[%emt 0:00:42] [#]} (17... a6 $1 $11 {remains equal.} 18. Nc3 (18. Qxc4 axb5 19. Qd3 Bb7 $11) 18... b5) 18. f6 {[%emt 0:01:39]} (18. exd5 $1 $16 Qxd5 19. Nc7 Qxd4+ 20. Nxd4) 18... e5 {[%emt 0:13:16]} 19. Qc3 {[%emt 0:05:49]} ({Much worse is} 19. Qxd5 Qxd5 20. exd5 Bb7 $15) 19... gxf6 {[%emt 0:15:30]} 20. exd5 {[%emt 0:02:19]} Nd6 {[%emt 0:01:20]} 21. Nxd6 {[%emt 0:03:03]} Qxd6 {[%emt 0:00:02]} 22. Qf3 {[%emt 0:02:44]} f5 $1 {[%emt 0:01:04]} 23. c4 {[%emt 0:01:26]} Qg6 {[%emt 0:05:27]} 24. Rfe1 {[%emt 0:04:33]} f6 {[%emt 0:03:08]} 25. Nd2 {[%emt 0:01:33]} f4 {[%emt 0:00:46]} 26. Kh1 {[%emt 0:00:29]} Bg4 {[%emt 0:00:58]} 27. Qc3 {[%emt 0:00:51]} Kh8 {[%emt 0:01:32]} 28. b4 {[%emt 0:00:14]} Rg8 {[%emt 0:00:22]} 29. c5 {[%emt 0:02:22] [#]} (29. a4 $15) 29... Bf5 {[%emt 0:04:23]} (29... Be6 $1 $17 {[%csl Gg8][%cal Rg6g2][%mdl 512]} 30. Qf3 {[#]} (30. dxe6 Qxg2#) 30... Bxd5 $1 {[%mdl 512]} 31. Qxd5 Rad8) 30. Re2 $2 {[%emt 0:02:28]} (30. Rg1 $1 $15) 30... Qh5 $2 {[%emt 0:00:48]} (30... Bd3 $19 31. Rf2 e4) 31. Rae1 {[%emt 0:00:44]} Rg3 {[%emt 0:01:39]} (31... Qf7 $15) 32. Nf3 {[%emt 0:03:08]} Rag8 {[%emt 0:02:24]} (32... Rg7 $11 {keeps the balance.}) 33. c6 {[%emt 0:01:29]} R3g6 {[%emt 0:04:50] [#]} (33... R3g7 $1 $11 {remains equal.}) 34. Nxe5 $1 {[%emt 0:03:28]} fxe5 {[%emt 0:01:09]} 35. Qxe5+ {[%emt 0:00:03]} ({Weaker is} 35. Rxe5 R6g7 $11) 35... R6g7 {[%emt 0:00:56]} 36. Qxf4 {[%emt 0:00:21]} Bh3 {[%emt 0:01:29] [#]} 37. Qd4 $1 {[%emt 0:01:29]} (37. gxh3 {[#] leads to mate.} Qxe2 $1 {[%mdl 576] Double Attack} 38. Qg3 Rxg3 39. hxg3 Qxe1+ {[%mdl 64] Double Attack} 40. Kh2 Qxg3+ 41. Kh1 Qxh3#) 37... Rf8 $2 {[%emt 0:05:29] [#]} (37... h6 $16) 38. Rd2 $2 {[%emt 0:02:09]} (38. Re7 $1 {[%csl Ge7][%cal Rd4g7][%mdl 512]} Bxg2+ {[#]} 39. Kg1 $1 {[%mdl 512]}) 38... Kg8 {[%emt 0:01:18]} 39. d6 $2 {[%emt 0:00:18]} ({White should play} 39. Rg1 $18 Bc8 40. d6) 39... Qb5 $1 {[%emt 0:02:57] [#]} 40. Qe3 {[%emt 0:07:34]} (40. Rc2 $1 $16) 40... Rf1+ {[%emt 0:05:02]} 41. Rxf1 {[%emt 0:00:03]} Qxf1+ {[%emt 0:00:06]} 42. Qg1 {[%emt 0:00:02]} Qf4 $2 {[%emt 0:00:25]} (42... Qb5 $16) 43. Qd1 {[%emt 0:00:40]} Qe4 {[%emt 0:01:10]} 44. Qf1 {[%emt 0:00:28]} Qxc6 {[%emt 0:00:48]} 45. a3 {[%emt 0:00:56]} Bd7 {[%emt 0:01:33]} 46. Qe2 {[%emt 0:01:08]} h6 {[%emt 0:01:03]} 47. Rd3 $2 {[%emt 0:00:41] [#]} (47. Qd3) 47... Qc1+ $2 {[%emt 0:00:24]} (47... Bh3 $1 {[%mdl 512]} 48. Rf3 (48. Rxh3 Qc1+) 48... Bxg2+ 49. Qxg2 Rxg2 50. Kxg2 Qxd6) 48. Rd1 {[%emt 0:00:02]} Qf4 {[%emt 0:00:06]} 49. Qd2 {[%emt 0:01:02]} Qxd2 {[%emt 0:00:34]} 50. Rxd2 {[%emt 0:00:02]} Kf7 {[%emt 0:00:15]} 51. Kg1 {[%emt 0:00:20]} Ke6 {[%emt 0:00:14]} 52. Rd4 {[%emt 0:00:15]} Bc6 {[%emt 0:00:47]} 53. g3 {[%emt 0:00:03]} Ke5 {[%emt 0:00:05]} 54. Rc4 {[%emt 0:00:27]} Kxd6 {[%emt 0:00:08]} 55. Rh4 {[%emt 0:00:16]} Rg6 {[%emt 0:00:07]} 56. Rf4 {[%emt 0:00:04]} Ke5 {[%emt 0:00:38]} 57. Rf8 {[%emt 0:00:06]} a5 {[%emt 0:00:51]} 58. bxa5 {[%emt 0:00:04]} bxa5 {[%emt 0:00:05]} 59. Rf4 {[%emt 0:00:43]} a4 {[%emt 0:00:25]} 60. Rc4 {[%emt 0:00:50]} Kd5 {[%emt 0:00:32]} 61. Rf4 {[%emt 0:00:12]} Kc5 {[%emt 0:00:27]} 62. g4 {[%emt 0:00:31]} Re6 {[%emt 0:00:32]} 63. Kf2 {[%emt 0:00:20]} Re4 {[%emt 0:00:48]} 64. Rf6 {[%emt 0:01:36]} Rxg4 {[%emt 0:00:06]} 65. Rxh6 {[%emt 0:00:00]} Rg2+ {[%emt 0:00:05]} 66. Ke1 {[%emt 0:00:02]} Ra2 {[%emt 0:00:07]} 67. Rh3 {[%emt 0:00:20]} Kc4 {[%emt 0:00:32]} 68. Kd1 {[%emt 0:00:02]} Bd7 {[%emt 0:00:18]} 69. Rh7 {[%emt 0:00:25]} Bg4+ {[%emt 0:00:28]} 70. Kc1 {[%emt 0:00:03]} Kc3 {[%emt 0:01:26]} 71. Rc7+ {[%emt 0:00:22]} Kb3 {[%emt 0:00:19]} 72. Rg7 {[%emt 0:02:22]} Ra1+ {[%emt 0:01:15]} 73. Kd2 {[%emt 0:00:03]} Rd1+ $19 {[%emt 0:00:09]} (73... Bd1 74. h4 Kxa3) 74. Ke3 {[%emt 0:00:05]} Be6 {[%emt 0:00:29]} 75. Rg3 {[%emt 0:00:12]} Kxa3 {[%emt 0:00:54]} 76. h4 {[%emt 0:01:00]} Rh1 {[%emt 0:00:26]} 77. Kf4+ {[%emt 0:00:05]} Kb2 {[%emt 0:00:08]} 78. Rg2+ {[%emt 0:00:07]} Kb1 {[%emt 0:00:13]} 79. Kg5 {[%emt 0:00:28]} a3 {[%emt 0:00:07]} 0-1